bitfinex-derivatives/quotes_ETHF0:USTF0_20250321
["timestamp","ask_amount","ask_price","bid_price","bid_amount"]
[1742528583060,2.78538,1980.7,1980.6,0.81580246]
[1742528586452,2.78538,1980.7,1980.6,2.18990246]
[1742528586863,2.78538,1980.7,1980.6,0.81580246]
[1742528587276,2.78538,1980.7,1980.6,0.00758246]
[1742528587865,2.78538,1980.7,1980.6,0.81580246]
[1742528588461,2.78538,1980.7,1980.6,2.11730246]
[1742528589252,1.9772,1980.7,1980.6,2.11730246]
[1742528590361,2.78538,1980.7,1980.6,2.11730246]
[1742528590562,2.09788,1980.7,1980.6,2.11730246]
[1742528590859,1.2897,1980.7,1980.6,2.11730246]
[1742528592657,4.7385,1980.9,1980.8,0.80814]
[1742528592868,4.05407,1981.0,1980.9,0.8081]
[1742528593056,5.39905,1981.1,1981.0,0.80806]
[1742528593961,6.69655,1981.1,1981.0,2.12476]
[1742528594159,6.69655,1981.1,1981.0,1.3167]
[1742528595965,6.69655,1981.1,1981.0,2.12476]
[1742528596966,6.69651,1981.1,1981.0,2.12476]
[1742528597161,1.945,1981.1,1981.0,2.12476]
[1742528598360,1.2975,1981.1,1981.0,2.12476]
[1742528609766,0.6933,1981.3,1981.2,0.80797]
[1742528609959,0.00758246,1981.4,1981.3,0.80793]
[1742528611363,0.00758246,1981.4,1981.3,1.46683]
[1742528611764,1.30418246,1981.4,1981.3,1.46683]
[1742528611958,1.30418246,1981.4,1981.3,4.67463]
[1742528612371,1.30418246,1981.4,1981.3,0.80793]
[1742528612666,1.95898246,1981.4,1981.3,0.80793]
[1742528613267,2.76687246,1981.4,1981.3,0.80793]
[1742528614372,1.95898246,1981.4,1981.3,0.80793]
[1742528614568,2.76687246,1981.4,1981.3,0.80793]
[1742528623578,1.95898246,1981.4,1981.3,0.80793]
[1742528624580,2.76687246,1981.4,1981.3,0.80793]
[1742528625874,1.95898246,1981.4,1981.3,0.80793]
[1742528628982,1.95898246,1981.4,1981.3,41.60793]
[1742528635182,2.76687246,1981.4,1981.3,41.60793]
[1742528635382,1.95898246,1981.4,1981.3,41.60793]
[1742528636794,2.76687246,1981.4,1981.3,41.60793]
[1742528636995,1.95898246,1981.4,1981.3,41.60793]
[1742528638990,2.76687246,1981.4,1981.3,41.60793]
[1742528645603,1.95898246,1981.4,1981.3,41.60793]
[1742528646008,1.30418246,1981.4,1981.3,41.60793]
[1742528646400,1.30418246,1981.4,1981.3,43.02103]
[1742528646805,0.00758246,1981.4,1981.3,43.02103]
[1742528649310,0.81547246,1981.4,1981.3,43.02103]
[1742528649508,3.56837246,1981.4,1981.3,43.02103]
[1742528657514,3.56837246,1981.4,1981.1,8.60132]
[1742528657515,2.01984,1981.3,1980.7,2.02043]
[1742528657706,0.80814,1980.8,1980.7,1.3994]
[1742528657911,0.80818,1980.7,1980.6,0.00758246]
[1742528658113,5.43108,1980.7,1980.6,0.81580246]
[1742528658510,5.43108,1980.7,1980.6,0.00758246]
[1742528659412,8.63888,1980.7,1980.6,0.00758246]
[1742528659612,0.8084,1980.2,1980.1,0.80838]
[1742528659819,0.8084,1980.2,1980.1,43.00778]
[1742528660212,2.1435,1980.2,1980.1,43.00778]
[1742528660411,2.1435,1980.2,1980.1,42.1994]
[1742528660617,0.80842,1980.1,1980.0,1.47635]
[1742528660821,2.12422,1980.1,1980.0,2.87533246]
[1742528661117,2.12422,1980.1,1980.0,41.61603246]
[1742528661513,2.12422,1980.1,1980.0,41.61604246]
[1742528661817,5.36822,1980.1,1980.0,41.61604246]
[1742528662209,5.36822,1980.1,1980.0,40.80758246]
[1742528662408,8.57602,1980.1,1980.0,40.80758246]
[1742528662716,8.57602,1980.1,1980.0,0.00758246]
[1742528663313,8.57602,1980.1,1980.0,1.39898246]
[1742528664418,5.36822,1980.1,1980.0,2.20744246]
[1742528665118,3.244,1980.1,1980.0,2.20744246]
[1742528666820,4.05242,1980.1,1980.0,2.20744246]
[1742528667219,0.80842,1980.1,1980.0,2.20744246]
[1742528667616,2.15991,1980.2,1980.1,0.80842]
[1742528667818,2.15991,1980.2,1980.1,2.81562]
[1742528668915,1.3515,1980.2,1980.1,2.81562]
[1742528669715,2.15988,1980.2,1980.1,2.81562]
[1742528670724,1.3515,1980.2,1980.1,2.81562]
[1742528670921,0.00758246,1980.3,1980.2,0.80838]
[1742528671121,0.00758246,1980.3,1980.2,2.74948]
[1742528674531,0.81592246,1980.3,1980.2,2.74948]
[1742528675027,0.80838,1980.2,1980.1,0.8084]
[1742528675228,3.55248,1980.2,1980.1,0.8084]
[1742528676125,0.80842,1980.1,1980.0,2.19582246]
[1742528676328,2.18942,1980.1,1980.0,2.19582246]
[1742528676524,1.381,1980.1,1980.0,2.19582246]
[1742528676724,2.18942,1980.1,1980.0,2.19582246]
[1742528680826,1.381,1980.1,1980.0,2.19582246]
[1742528681031,1.381,1980.1,1980.0,2.88762246]
[1742528682438,7.26875246,1980.3,1980.2,0.80838]
[1742528682628,0.80838,1980.2,1980.1,2.14959]
[1742528682934,2.11228,1980.2,1980.1,1.3412]
[1742528683537,2.11228,1980.2,1980.1,2.14962]
[1742528683729,2.11228,1980.2,1980.1,1.3412]
[1742528684029,0.80842,1980.1,1980.0,0.00758246]
[1742528684228,2.78532,1980.1,1980.0,1.34878246]
[1742528684829,2.78532,1980.1,1980.0,2.15724246]
[1742528686733,1.9769,1980.1,1980.0,2.15724246]
[1742528687032,2.78532,1980.1,1980.0,2.15724246]
[1742528689227,2.78532,1980.1,1980.0,0.81604246]
[1742528689631,2.78532,1980.1,1980.0,0.00758246]
[1742528689828,2.78532,1980.1,1980.0,0.81604246]
[1742528690538,6.03032,1980.1,1980.0,0.81604246]
[1742528692739,6.03032,1980.1,1980.0,2.11394246]
[1742528693137,6.03032,1980.1,1980.0,0.81604246]
[1742528693533,6.03032,1980.1,1980.0,0.00758246]
[1742528694140,6.03032,1980.1,1980.0,0.81604246]
[1742528695840,6.03032,1980.1,1980.0,0.00758246]
[1742528704553,0.80867,1979.5,1979.4,3.2078]
[1742528704744,0.80867,1979.5,1979.4,4.66498]
[1742528704947,4.05467,1979.5,1979.4,3.2078]
[1742528705249,0.80883,1979.1,1979.0,1.46834]
[1742528705433,0.80883,1979.1,1979.0,0.6595]
[1742528705633,0.80883,1979.1,1979.0,42.26837]
[1742528706045,2.20443,1979.1,1979.0,42.26837]
[1742528707646,5.44943,1979.1,1979.0,41.60887]
[1742528707848,0.80887,1979.0,1978.9,1.52066246]
[1742528708146,2.17337,1979.0,1978.9,1.52066246]
[1742528708339,3.245,1979.1,1979.0,0.80887]
[1742528708545,0.00758246,1979.2,1979.1,0.80883]
[1742528709143,0.80872,1979.5,1979.4,0.80869]
[1742528709336,1.51622,1979.5,1979.4,0.80869]
[1742528709540,1.51622,1979.5,1979.3,0.80872]
[1742528709541,0.80874,1979.4,1979.3,0.80872]
[1742528710150,0.7075,1979.5,1979.4,0.80871]
[1742528710151,1.51619,1979.5,1979.4,0.80871]
[1742528710446,1.52377246,1979.5,1979.4,0.80871]
[1742528710844,0.81625246,1979.5,1979.4,0.80871]
[1742528713349,0.80871,1979.4,1979.3,1.51632]
[1742528713951,0.80871,1979.4,1979.3,42.31632]
[1742528714151,4.05471,1979.4,1979.3,41.5076]
[1742528714351,0.80883,1979.1,1979.0,3.2078]
[1742528714844,0.80883,1979.1,1979.0,44.0078]
[1742528715044,2.12593,1979.1,1979.0,44.0078]
[1742528715239,2.12593,1979.1,1979.0,44.81667]
[1742528717655,2.12593,1979.1,1979.0,45.4011]
[1742528717861,2.12593,1979.1,1979.0,44.0078]
[1742528718246,2.12593,1979.1,1979.0,46.20997]
[1742528718443,2.12593,1979.1,1979.0,45.4011]
[1742528719256,2.12593,1979.1,1979.0,44.0078]
[1742528719455,2.12593,1979.1,1979.0,40.8]
[1742528720457,0.80887,1979.0,1978.9,0.00758246]
[1742528720662,4.05487,1979.0,1978.9,1.34838246]
[1742528725167,3.246,1979.0,1978.9,2.15729246]
[1742528726269,4.05487,1979.0,1978.9,2.15729246]
[1742528727264,4.05487,1979.0,1978.9,1.34838246]
[1742528729170,5.43737,1979.0,1978.9,2.15729246]
[1742528730965,3.246,1979.0,1978.9,2.15729246]
[1742528732063,5.46337,1979.0,1978.9,2.15729246]
[1742528732766,2.21737,1979.0,1978.9,42.95729246]
[1742528732962,3.247,1979.2,1979.1,0.80883]
[1742528733170,1.4085,1979.3,1979.2,0.80879]
[1742528733556,4.05573,1979.4,1979.3,0.80875]
[1742528733766,5.38513,1979.4,1979.3,0.80875]
[1742528733967,4.5764,1979.4,1979.3,0.80875]
[1742528734158,1.3294,1979.4,1979.3,0.80875]
[1742528734365,1.3294,1979.4,1979.3,1.46625]
[1742528734664,2.13811,1979.4,1979.3,1.46625]
[1742528735067,1.3294,1979.4,1979.3,1.46625]
[1742528736759,3.21538246,1979.5,1979.4,0.80871]
[1742528736970,0.00758246,1979.5,1979.4,2.79371]
[1742528738270,3.2078,1979.8,1979.7,0.80859]
[1742528738458,5.33591,1979.9,1979.8,0.80855]
[1742528738860,0.80846,1980.1,1980.0,0.80844]
[1742528739061,4.01616,1980.3,1979.9,3.2078]
[1742528739373,0.80841,1980.2,1980.1,0.80841]
[1742528739668,2.08981,1980.2,1980.1,41.60841]
[1742528740366,1.2814,1980.2,1980.1,41.60841]
[1742528741264,2.08978,1980.2,1980.1,40.8]
[1742528741672,0.80842,1980.1,1980.0,0.80845]
[1742528741873,2.14532,1980.1,1980.0,0.80845]
[1742528742068,5.39132,1980.1,1980.0,0.80845]
[1742528743869,4.5829,1980.1,1980.0,0.80845]
[1742528744071,5.39132,1980.1,1980.0,0.80845]
[1742528744973,2.14532,1980.1,1980.0,0.80845]
[1742528745673,1.3369,1980.1,1980.0,0.80845]
[1742528746272,2.14532,1980.1,1980.0,0.80845]
[1742528746574,0.80846,1980.0,1979.9,0.81606246]
[1742528746769,3.50486,1980.0,1979.9,0.81606246]
[1742528747373,2.6964,1980.0,1979.9,0.81606246]
[1742528747674,1.4037,1980.0,1979.9,0.81606246]
[1742528750177,2.21216,1980.0,1979.9,0.81606246]
[1742528750768,2.21216,1980.0,1979.9,0.00758246]
[1742528750971,0.80859,1979.8,1979.3,5.22965]
[1742528751177,5.9868,1979.9,1979.5,3.2078]
[1742528751377,0.8086,1979.7,1979.6,0.80859]
[1742528751675,0.8086,1979.7,1979.6,40.8]
[1742528752273,4.0536,1979.7,1979.6,40.8]
[1742528752683,4.0536,1979.7,1979.6,41.60863]
[1742528753879,3.245,1979.7,1979.6,41.60863]
[1742528754379,4.5781,1979.7,1979.6,41.60863]
[1742528755281,5.38669,1979.7,1979.6,41.60863]
[1742528756782,4.5781,1979.7,1979.6,41.60863]
[1742528757078,5.38669,1979.7,1979.6,41.60863]
[1742528757778,5.38669,1979.7,1979.6,42.95603]
[1742528759579,4.5781,1979.7,1979.6,42.95603]
[1742528759777,5.38669,1979.7,1979.6,42.95603]
[1742528759971,4.5781,1979.7,1979.6,42.95603]
[1742528760373,5.38669,1979.7,1979.6,42.95603]
[1742528760678,7.7884,1979.9,1979.8,0.80855]
[1742528760879,3.245,1979.9,1979.8,0.80855]
[1742528761073,1.3556,1980.1,1980.0,0.80846]
[1742528761374,3.245,1980.2,1980.1,0.80842]
[1742528761581,4.02373246,1980.3,1980.2,0.80838]
[1742528761582,0.00758246,1980.3,1980.2,0.80838]
[1742528761974,1.29138246,1980.3,1980.2,2.20698]
[1742528762175,2.09972246,1980.3,1980.2,2.20698]
[1742528762377,2.09972246,1980.3,1980.2,0.80838]
[1742528767084,1.29138246,1980.3,1980.2,0.80838]
[1742528767277,1.29138246,1980.3,1980.2,1.48458]
[1742528767683,2.09972246,1980.3,1980.2,0.80838]
[1742528771285,1.29138246,1980.3,1980.2,0.80838]
[1742528775086,0.00758246,1980.3,1980.2,0.80838]
[1742528775483,1.3734,1980.6,1980.5,0.80826]
[1742528776086,2.18162,1980.6,1980.5,2.09436]
[1742528776786,2.18162,1980.6,1980.5,1.2861]
[1742528777188,2.18162,1980.6,1980.5,2.09436]
[1742528778291,1.3734,1980.6,1980.5,2.09436]
[1742528778683,0.00758246,1980.7,1980.6,0.80822]
[1742528778990,1.40898246,1980.7,1980.6,2.78472]
[1742528779888,0.00758246,1980.7,1980.6,2.78472]
[1742528781389,0.00758246,1980.7,1980.6,9.23652]
[1742528781789,3.8844,1981.1,1981.0,0.80806]
[1742528782084,4.69243,1981.1,1981.0,0.80806]
[1742528782388,0.6766,1981.1,1981.0,41.60806]
[1742528782581,4.7038,1981.2,1981.1,0.80801]
[1742528782778,4.052,1981.2,1981.1,1.45351]
[1742528782981,5.3387,1981.2,1981.1,2.74711]
[1742528783784,4.5307,1981.2,1981.1,2.74711]
[1742528783987,0.81554246,1981.3,1981.2,0.80797]
[1742528784183,2.10224246,1981.3,1981.2,2.76697]
[1742528784388,1.29428246,1981.3,1981.2,2.76697]
[1742528784583,0.00758246,1981.3,1981.2,2.76697]
[1742528785092,0.00758246,1981.3,1981.2,5.97477]
[1742528792896,0.00758246,1981.3,1981.2,9.21677]
[1742528795799,1.36198246,1981.3,1981.2,9.21677]
[1742528804201,1.36198246,1981.3,1981.2,8.55137]
[1742528804500,2.04018246,1981.3,1981.2,8.55137]
[1742528804697,2.04018246,1981.3,1981.2,7.25777]
[1742528809309,2.84811246,1981.3,1981.2,0.80797]
[1742528809807,2.84811246,1981.3,1981.2,41.60797]
[1742528811108,2.04018246,1981.3,1981.2,41.60797]
[1742528812306,2.84811246,1981.3,1981.2,41.60797]
[1742528813697,2.84811246,1981.3,1981.2,40.8]
[1742528816310,6.08911246,1981.3,1981.2,40.8]
[1742528816515,0.80801,1981.1,1981.0,0.00758246]
[1742528816812,0.80801,1981.1,1981.0,0.81564246]
[1742528817009,0.80801,1981.1,1981.0,41.61564246]
[1742528817313,1.49071,1981.1,1981.0,41.61564246]
[1742528817515,0.6827,1981.1,1981.0,41.61564246]
[1742528818114,2.0138,1981.1,1981.0,41.61564246]
[1742528818413,2.0138,1981.1,1981.0,42.92154246]
[1742528821619,2.0138,1981.1,1981.0,46.12934246]
[1742528821620,1.3311,1981.1,1981.0,46.12934246]
[1742528821819,1.32778246,1981.3,1981.2,0.80797]
[1742528822123,2.65568246,1981.3,1981.2,0.80797]
[1742528822624,2.65568246,1981.3,1981.2,2.21517]
[1742528824120,1.33548246,1981.3,1981.2,2.21517]
[1742528824312,1.33548246,1981.3,1981.2,5.42297]
[1742528825633,0.7093,1981.5,1981.4,0.80789]
[1742528827026,2.0421,1981.5,1981.4,2.17829]
[1742528827726,1.3328,1981.5,1981.4,2.17829]
[1742528827928,1.3328,1981.5,1981.4,2.87719]
[1742528830028,2.14065,1981.5,1981.4,2.17829]
[1742528830532,1.3328,1981.5,1981.1,3.241]
[1742528830731,0.80801,1981.2,1981.1,0.808]
[1742528830929,0.80801,1981.1,1981.0,0.00758246]
[1742528831232,1.45111,1981.1,1981.0,40.80758246]
[1742528831433,0.6431,1981.1,1981.0,41.61564246]
[1742528831631,0.6431,1981.1,1981.0,42.99594246]
[1742528831830,1.3496,1981.2,1981.1,0.80801]
[1742528832132,1.3496,1981.2,1981.1,2.18831]
[1742528832335,2.15757,1981.2,1981.1,2.18831]
[1742528832833,1.3496,1981.2,1981.1,2.18831]
[1742528833737,2.15757,1981.2,1981.1,2.18831]
[1742528836536,2.15757,1981.2,1981.1,42.98831]
[1742528836738,2.15757,1981.2,1981.1,46.19611]
[1742528838340,2.15757,1981.2,1981.1,44.0078]
[1742528838539,2.15757,1981.2,1981.1,41.60801]
[1742528839339,2.15757,1981.2,1981.1,40.8]
[1742528842039,0.80801,1981.1,1981.0,0.00758246]
[1742528842241,2.18851,1981.1,1981.0,0.00758246]
[1742528843736,2.18851,1981.1,1981.0,0.81564246]
[1742528843935,2.18851,1981.1,1981.0,2.84044246]
[1742528843936,1.3805,1981.1,1981.0,2.84044246]
[1742528844744,2.18851,1981.1,1981.0,43.64044246]
[1742528846644,1.3805,1981.1,1981.0,44.30414246]
[1742528847538,0.6431,1981.3,1981.2,0.80797]
[1742528847749,1.3726,1981.3,1981.2,0.80797]
[1742528848140,1.3726,1981.3,1981.2,2.12607]
[1742528849549,2.18053,1981.3,1981.2,2.12607]
[1742528850049,1.3726,1981.3,1981.2,2.12607]
[1742528852147,3.2078,1981.7,1981.2,3.33804]
[1742528852442,1.3623,1981.6,1981.5,0.80785]
[1742528853054,1.3623,1981.6,1981.5,2.20505]
[1742528854253,2.17011,1981.6,1981.5,2.20505]
[1742528854752,1.3623,1981.6,1981.5,2.20505]
[1742528855051,2.17011,1981.6,1981.5,2.20505]
[1742528856751,3.58281,1981.6,1981.5,2.20505]
[1742528857551,2.775,1981.6,1981.5,2.20505]
[1742528858454,3.58281,1981.6,1981.5,2.20505]
[1742528859255,2.775,1981.6,1981.5,2.20505]
[1742528860054,3.58281,1981.6,1981.5,2.20505]
[1742528860658,2.775,1981.6,1981.5,2.20505]
[1742528861653,3.58281,1981.6,1981.5,2.20505]
[1742528867567,2.775,1981.6,1981.5,2.20505]
[1742528868268,3.58281,1981.6,1981.5,2.20505]
[1742528868569,2.775,1981.6,1981.5,2.20505]
[1742528868773,3.58281,1981.6,1981.5,2.20505]
[1742528875379,2.775,1981.6,1981.5,2.20505]
[1742528877972,4.4196898,1982.1,1982.0,0.80765]
[1742528878187,0.80767,1982.0,1981.9,0.80765]
[1742528878481,2.20597,1982.0,1981.9,0.81523246]
[1742528878670,1.3983,1982.0,1981.9,0.81523246]
[1742528879074,2.20595,1982.0,1981.9,0.81523246]
[1742528879474,2.20595,1982.0,1981.9,0.00758246]
[1742528881271,3.61115,1982.0,1981.9,0.00758246]
[1742528886889,0.80781,1981.6,1981.5,0.80782]
[1742528887087,0.80781,1981.6,1981.5,2.18772]
[1742528887991,2.19111,1981.6,1981.5,2.18772]
[1742528889484,0.80785,1981.5,1981.4,0.81544246]
[1742528889685,2.13325,1981.5,1981.4,2.10334246]
[1742528889885,3.239,1981.6,1981.5,0.80785]
[1742528890086,5.2214,1981.6,1981.5,2.09575]
[1742528890483,6.02921,1981.6,1981.5,2.09575]
[1742528890690,3.239,1981.6,1981.5,2.09575]
[1742528890891,0.00758246,1981.7,1981.6,0.80781]
[1742528891194,0.00758246,1981.7,1981.6,3.42911]
[1742528908806,0.00758246,1981.7,1981.6,44.22911]
[1742528911010,0.00758246,1981.7,1981.6,47.46811]
[1742528912114,1.49328,1982.2,1982.1,0.80761]
[1742528912316,2.78728,1982.2,1982.1,0.80761]
[1742528915814,1.9797,1982.2,1982.1,0.80761]
[1742528916019,1.49327,1982.2,1982.1,0.80761]
[1742528916218,2.77177,1982.2,1982.1,0.80761]
[1742528920015,0.80761,1982.1,1982.0,2.12081]
[1742528920215,2.08621,1982.1,1982.0,2.12081]
[1742528920614,2.08621,1982.1,1982.0,42.92081]
[1742528922624,1.2786,1982.1,1982.0,42.92081]
[1742528924933,1.2786,1982.1,1982.0,43.62111]
[1742528928627,1.49329,1982.2,1982.1,0.80761]
[1742528928825,1.49329,1982.2,1982.1,2.18631]
[1742528929028,2.0333,1982.2,1982.1,2.18631]
[1742528929432,2.84087,1982.2,1982.1,2.18631]
[1742528932439,0.6857,1982.2,1982.1,2.18631]
[1742528933228,2.81187,1982.2,1982.1,2.18631]
[1742528933834,2.81187,1982.2,1982.1,40.18631]
[1742528935534,2.0043,1982.2,1982.1,40.18631]
[1742528935732,0.6857,1982.2,1982.1,40.18631]
[1742528936137,0.6857,1982.2,1982.1,40.85891]
[1742528939843,1.49327,1982.2,1982.1,40.18631]
[1742528940140,2.87237,1982.2,1982.1,40.18631]
[1742528940337,2.87237,1982.2,1982.1,38.0]
[1742528940643,2.87237,1982.2,1982.1,38.80761]
[1742528940830,2.87237,1982.2,1982.1,40.20391]
[1742528942240,2.0648,1982.2,1982.1,40.20391]
[1742528943143,2.87237,1982.2,1982.1,40.20391]
[1742528946946,2.87237,1982.2,1982.1,39.3963]
[1742528947648,2.87237,1982.2,1982.1,40.20391]
[1742528950046,1.49327,1982.2,1982.1,40.20391]
[1742528950241,2.78187,1982.2,1982.1,40.20391]
[1742528952150,1.49327,1982.2,1982.1,40.20391]
[1742528952750,2.84127,1982.2,1982.1,40.20391]
[1742528953543,2.84127,1982.2,1982.1,39.3963]
[1742528953852,6.07827,1982.2,1982.1,39.3963]
[1742528956250,6.07827,1982.2,1982.1,38.0]
[1742528956443,11.78607,1982.2,1982.1,38.0]
[1742528957040,9.28607,1982.2,1982.1,38.0]
[1742528957552,6.07827,1982.2,1982.1,38.0]
[1742528957954,6.07827,1982.2,1982.1,39.3116]
[1742528958149,0.7099,1982.3,1982.1,39.3116]
[1742528958350,0.80753,1982.3,1982.2,1.3116]
[1742528958551,0.80753,1982.3,1982.2,2.6738]
[1742528960549,0.80753,1982.3,1982.2,3.48137]
[1742528960750,0.80752,1982.4,1982.2,2.6738]
[1742528960949,0.80752,1982.4,1982.3,1.2919]
[1742528961755,2.15402,1982.4,1982.3,1.2919]
[1742528962258,0.80752,1982.4,1982.3,2.09943]
[1742528966760,0.80752,1982.4,1982.3,1.2919]
[1742528966954,2.09822,1982.4,1982.3,1.2919]
[1742528969566,2.09822,1982.4,1982.3,2.09943]
[1742528970261,2.09822,1982.4,1982.3,1.2919]
[1742528972458,2.09822,1982.4,1982.3,42.0919]
[1742528972663,0.80752,1982.4,1982.3,42.0919]
[1742528973559,2.16042,1982.4,1982.3,42.0919]
[1742528974665,1.3529,1982.4,1982.1,42.01538]
[1742528974866,0.80757,1982.2,1982.1,39.3732]
[1742528975063,0.80757,1982.2,1982.1,38.0]
[1742528975265,2.16987,1982.2,1982.1,78.8]
[1742528983691,2.16987,1982.2,1982.1,79.4883]
[1742528984684,2.16987,1982.2,1982.1,78.8]
[1742528984887,5.40587,1982.2,1982.1,38.0]
[1742528985594,11.11367,1982.2,1982.1,38.0]
[1742528985983,11.20130453,1982.2,1982.1,38.0]
[1742528986185,11.20130453,1982.2,1982.1,32.11067016]
[1742528986683,11.20130453,1982.2,1982.1,29.69097016]
[1742528988084,11.20130453,1982.2,1982.1,19.90797017]
[1742528988285,13.08359312,1982.2,1982.1,19.90797017]
[1742528988592,12.20477933,1982.2,1982.1,19.90797017]
[1742528989184,12.20477933,1982.2,1982.1,19.30797017]
[1742528989589,11.20130453,1982.2,1982.1,19.30797017]
[1742528990192,11.20130453,1982.2,1982.1,17.25287017]
[1742528990391,12.2041275,1982.2,1982.1,17.25287017]
[1742528990793,11.20130453,1982.2,1982.1,17.25287017]
[1742528992497,11.11367,1982.2,1982.1,17.25287017]
[1742528992694,11.20130481,1982.2,1982.1,17.25287017]
[1742528995399,11.11367,1982.2,1982.1,17.25287017]
[1742528995699,11.20132157,1982.2,1982.1,17.25287017]
[1742528995996,8.70132157,1982.2,1982.1,17.25287017]
[1742528996597,8.61367,1982.2,1982.1,17.25287017]
[1742528998298,8.70133132,1982.2,1982.1,17.25287017]
[1742528999198,11.20133163,1982.2,1982.1,17.25287017]
[1742529000700,11.11367,1982.2,1982.1,17.25287017]
[1742529000899,11.20133443,1982.2,1982.1,17.25287017]
[1742529002103,12.20445613,1982.2,1982.1,17.25287017]
[1742529002299,9.70445613,1982.2,1982.1,17.25287017]
[1742529003993,8.70133443,1982.2,1982.1,17.25287017]
[1742529004190,9.5803247,1982.2,1982.1,17.25287017]
[1742529004797,9.5803247,1982.2,1982.1,16.92787017]
[1742529005898,9.70504095,1982.2,1982.1,16.92787017]
[1742529006299,10.58413961,1982.2,1982.1,16.92787017]
[1742529008502,9.70504095,1982.2,1982.1,16.92787017]
[1742529008996,8.70133443,1982.2,1982.1,16.92787017]
[1742529010298,10.58496646,1982.2,1982.1,16.92787017]
[1742529010599,10.58499895,1982.2,1982.1,16.92787017]
[1742529010799,9.70544929,1982.2,1982.1,16.92787017]
[1742529010999,9.70546968,1982.2,1982.1,16.92787017]
[1742529011198,10.58516715,1982.2,1982.1,16.92787017]
[1742529011409,10.58516787,1982.2,1982.1,16.92787017]
[1742529012295,9.88226787,1982.2,1982.1,16.92787017]
[1742529012495,9.0025704,1982.2,1982.1,16.92787017]
[1742529012704,7.99845554,1982.2,1982.1,18.29667017]
[1742529013102,7.33905573,1982.2,1982.1,18.29667017]
[1742529013300,7.25137,1982.2,1982.1,18.29667017]
[1742529013703,4.01537,1982.2,1982.1,18.29667017]
[1742529014107,7.25137,1982.2,1982.1,18.29667017]
[1742529026520,8.60897,1982.2,1982.1,18.29667017]
[1742529026714,8.60897,1982.2,1982.1,17.61647017]
[1742529027618,8.60897,1982.2,1982.1,16.92787017]
[1742529029912,9.48988512,1982.2,1982.1,16.92787017]
[1742529030714,10.49581517,1982.2,1982.1,16.92787017]
[1742529030921,10.58353191,1982.2,1982.1,16.92787017]
[1742529031316,9.57760186,1982.2,1982.1,16.92787017]
[1742529031622,8.60897,1982.2,1982.1,16.92787017]
[1742529032523,7.25137,1982.2,1982.1,16.92787017]
[1742529032720,7.25137,1982.2,1982.1,17.63677017]
[1742529033421,8.63057,1982.2,1982.1,17.63677017]
[1742529034417,8.63057,1982.2,1982.1,16.92787017]
[1742529034722,9.32157,1982.2,1982.1,16.92787017]
[1742529037828,10.32778872,1982.2,1982.1,16.92787017]
[1742529038528,9.32157,1982.2,1982.1,16.92787017]
[1742529038824,10.20289272,1982.2,1982.1,16.92787017]
[1742529039426,11.20934192,1982.2,1982.1,16.92787017]
[1742529047629,10.3280192,1982.2,1982.1,16.92787017]
[1742529048236,11.20993663,1982.2,1982.1,16.92787017]
[1742529049039,9.13973663,1982.2,1982.1,16.92787017]
[1742529049333,8.2578192,1982.2,1982.1,17.61527017]
[1742529049538,8.2568192,1982.2,1982.1,17.61527017]
[1742529049736,7.25037,1982.2,1982.1,17.61527017]
[1742529050839,8.25796028,1982.2,1982.1,17.61527017]
[1742529052240,9.14050238,1982.2,1982.1,17.61527017]
[1742529055240,9.95277477,1982.2,1982.1,17.61527017]
[1742529055837,9.14050238,1982.2,1982.1,17.61527017]
[1742529056946,9.95292387,1982.2,1982.1,17.61527017]
[1742529057937,9.14050238,1982.2,1982.1,17.61527017]
[1742529058138,9.95294453,1982.2,1982.1,17.61527017]
[1742529058544,9.14050238,1982.2,1982.1,17.61527017]
[1742529059044,9.95295821,1982.2,1982.1,16.92787017]
[1742529059844,9.95295821,1982.2,1982.1,18.32317017]
[1742529060332,10.64365821,1982.2,1982.1,18.32317017]
[1742529060944,10.73149133,1982.2,1982.1,18.32317017]
[1742529061339,10.64365821,1982.2,1982.1,18.32317017]
[1742529061539,10.73148469,1982.2,1982.1,18.32317017]
[1742529061741,9.83120238,1982.2,1982.1,18.32317017]
[1742529068745,10.64367507,1982.2,1982.1,18.32317017]
[1742529069545,9.95297507,1982.2,1982.1,18.32317017]
[1742529069748,9.13950238,1982.2,1982.1,18.32317017]
[1742529071354,5.90550238,1982.2,1982.1,18.32317017]
[1742529071553,9.13950238,1982.2,1982.1,18.32317017]
[1742529072753,9.82200238,1982.2,1982.1,18.32317017]
[1742529072955,9.13950238,1982.2,1982.1,18.32317017]
[1742529077863,8.25696028,1982.2,1982.1,18.32317017]
[1742529087560,9.13918215,1982.2,1982.1,18.32317017]
[1742529097870,10.0392006,1982.2,1982.1,18.32317017]
[1742529098380,10.0392006,1982.2,1981.5,3.2078]
[1742529098381,4.03809,1982.1,1981.5,3.2078]
[1742529098571,4.03809,1982.1,1980.8,48.68128]
[1742529098572,0.80785,1981.5,1981.1,3.2078]
[1742529098876,7.24865,1981.5,1981.4,2.46e-06]
[1742529099073,9.03095034,1981.5,1981.4,2.46e-06]
[1742529099375,9.62187121,1981.5,1981.4,2.46e-06]
[1742529099680,10.62963346,1981.5,1981.4,2.46e-06]
[1742529100177,13.12963346,1981.5,1981.4,2.46e-06]
[1742529100377,0.80818,1980.7,1980.6,0.6666]
[1742529100585,7.24898,1980.7,1980.6,1.3391]
[1742529100769,7.24898,1980.7,1980.6,42.1391]
[1742529101284,7.24898,1980.7,1980.6,1.3391]
[1742529101874,4.04118,1980.7,1980.6,2.7461]
[1742529103382,7.24898,1980.7,1980.6,2.7461]
[1742529105295,2.02069,1980.5,1979.9,3.2078]
[1742529105491,7.2501,1980.4,1980.3,0.7088]
[1742529105798,4.0423,1980.4,1980.3,41.5088]
[1742529106595,2.9763,1980.4,1980.3,41.5088]
[1742529106787,0.00758246,1980.5,1980.3,44.81714]
[1742529106988,0.81587246,1980.5,1980.3,41.5088]